[Event "Early-Titled-Tuesday-Blitz-February-06-2024"]
[Site "Chess.com"]
[Date "2024.02.06"]
[Round "10"]
[White "Elnaz_Kaliakhmet"]
[Black "JonasEilenberg"]
[Result "0-1"]
[WhiteElo "2275"]
[BlackElo "2531"]
[TimeControl "180+1"]
[EndTime "9:55:13 PST"]
[Termination "JonasEilenberg won by resignation"]

1. d4 {[%clk 0:03:00.9]} 1... d5 {[%clk 0:02:59.2]} 2. c4 {[%clk 0:03:00]} 2...
e6 {[%clk 0:02:59.7]} 3. Nf3 {[%clk 0:02:59.3]} 3... a6 {[%clk 0:03:00.3]} 4.
cxd5 {[%clk 0:02:54.5]} 4... exd5 {[%clk 0:03:01.2]} 5. Nc3 {[%clk 0:02:54.2]}
5... h6 {[%clk 0:03:00.9]} 6. Bf4 {[%clk 0:02:47]} 6... Nf6 {[%clk 0:03:00.5]}
7. e3 {[%clk 0:02:46.6]} 7... Bd6 {[%clk 0:03:00.9]} 8. Bxd6 {[%clk 0:02:45.9]}
8... Qxd6 {[%clk 0:03:01]} 9. Bd3 {[%clk 0:02:46.4]} 9... O-O {[%clk 0:03:01.6]}
10. O-O {[%clk 0:02:46.7]} 10... Nc6 {[%clk 0:03:02.2]} 11. a3 {[%clk
0:02:45.4]} 11... Re8 {[%clk 0:03:00.9]} 12. h3 {[%clk 0:02:45.3]} 12... g6
{[%clk 0:02:52.9]} 13. Qc2 {[%clk 0:02:45.1]} 13... Kg7 {[%clk 0:02:53.5]} 14.
Rac1 {[%clk 0:02:43.4]} 14... Nh7 {[%clk 0:02:10.2]} 15. b4 {[%clk 0:02:40.1]}
15... Ne7 {[%clk 0:01:51.5]} 16. Na4 {[%clk 0:02:38.6]} 16... c6 {[%clk
0:01:48.5]} 17. Nc5 {[%clk 0:02:32.9]} 17... Nf8 {[%clk 0:01:44.8]} 18. Ne5
{[%clk 0:02:28.5]} 18... Nd7 {[%clk 0:01:34.1]} 19. Nexd7 {[%clk 0:02:19.6]}
19... Bxd7 {[%clk 0:01:35]} 20. Nxb7 {[%clk 0:02:19.7]} 20... Qf6 {[%clk
0:01:35.3]} 21. Nc5 {[%clk 0:02:19.6]} 21... Bc8 {[%clk 0:01:34.1]} 22. Nb3
{[%clk 0:02:14.7]} 22... h5 {[%clk 0:01:33.7]} 23. Na5 {[%clk 0:02:13.6]} 23...
Bd7 {[%clk 0:01:31.8]} 24. Qc5 {[%clk 0:02:08.4]} 24... Qg5 {[%clk 0:01:29.2]}
25. Kh1 {[%clk 0:02:02.9]} 25... Qh4 {[%clk 0:01:27.1]} 26. Kh2 {[%clk 0:02:00]}
26... Qf6 {[%clk 0:01:21.9]} 27. Qc2 {[%clk 0:01:22.3]} 27... g5 {[%clk
0:01:21.9]} 28. f4 {[%clk 0:01:12.4]} 28... g4 {[%clk 0:01:22.1]} 29. Qf2 {[%clk
0:01:12.2]} 29... Nf5 {[%clk 0:01:11.8]} 30. Bxf5 {[%clk 0:01:10]} 30... Qxf5
{[%clk 0:01:12.7]} 31. Nxc6 {[%clk 0:01:05.7]} 31... gxh3 {[%clk 0:01:09.1]} 32.
g3 {[%clk 0:01:05.1]} 32... f6 {[%clk 0:01:04.5]} 33. Na5 {[%clk 0:01:01]} 33...
Re7 {[%clk 0:01:01.9]} 34. Rc5 {[%clk 0:00:59.8]} 34... Rae8 {[%clk 0:01:01.6]}
35. Rc3 {[%clk 0:00:57.3]} 35... Kh6 {[%clk 0:00:58.2]} 36. Nb7 {[%clk
0:00:49.1]} 36... Re6 {[%clk 0:00:45.5]} 37. Nc5 {[%clk 0:00:48.2]} 37... R6e7
{[%clk 0:00:45.9]} 38. Nxd7 {[%clk 0:00:48.6]} 38... Rxd7 {[%clk 0:00:46.8]} 39.
Re1 {[%clk 0:00:45.1]} 39... h4 {[%clk 0:00:46.4]} 40. Rg1 {[%clk 0:00:43.9]}
40... Rg7 {[%clk 0:00:45.4]} 41. gxh4 {[%clk 0:00:37.9]} 41... Reg8 {[%clk
0:00:46]} 42. e4 {[%clk 0:00:16.1]} 42... Qxe4 {[%clk 0:00:41.1]} 43. Rxg7
{[%clk 0:00:14]} 43... Rxg7 {[%clk 0:00:41.1]} 44. Kxh3 {[%clk 0:00:14.3]} 44...
Qh1+ {[%clk 0:00:39]} 45. Qh2 {[%clk 0:00:14.5]} 45... Qf1+ {[%clk 0:00:39.8]}
0-1

[Event "Early-Titled-Tuesday-Blitz-February-06-2024"]
[Site "Chess.com"]
[Date "2024.02.06"]
[Round "10"]
[White "jaskol95"]
[Black "Eloist"]
[Result "1-0"]
[WhiteElo "2585"]
[BlackElo "2425"]
[TimeControl "180+1"]
[EndTime "9:55:14 PST"]
[Termination "jaskol95 won by resignation"]

1. e4 {[%clk 0:03:00.9]} 1... e6 {[%clk 0:02:52.9]} 2. Nf3 {[%clk 0:03:00.5]}
2... d5 {[%clk 0:02:52.6]} 3. e5 {[%clk 0:03:01.2]} 3... c5 {[%clk 0:02:52.1]}
4. b4 {[%clk 0:03:01.9]} 4... cxb4 {[%clk 0:02:52.1]} 5. a3 {[%clk 0:03:01.2]}
5... Nc6 {[%clk 0:02:52.1]} 6. axb4 {[%clk 0:03:01.2]} 6... Bxb4 {[%clk
0:02:53]} 7. c3 {[%clk 0:03:01.6]} 7... Ba5 {[%clk 0:02:53]} 8. d4 {[%clk
0:03:01.7]} 8... Nge7 {[%clk 0:02:52.7]} 9. Bd3 {[%clk 0:03:01.7]} 9... Bd7
{[%clk 0:02:52.6]} 10. O-O {[%clk 0:02:58.6]} 10... b5 {[%clk 0:02:52.5]} 11.
Ba3 {[%clk 0:02:47.3]} 11... b4 {[%clk 0:02:51.9]} 12. cxb4 {[%clk 0:02:45.6]}
12... Nxb4 {[%clk 0:02:51.7]} 13. Be2 {[%clk 0:02:38.9]} 13... O-O {[%clk
0:02:38.7]} 14. Nbd2 {[%clk 0:02:38.6]} 14... Nec6 {[%clk 0:02:12.7]} 15. Nb3
{[%clk 0:02:37.5]} 15... Bb6 {[%clk 0:02:11.2]} 16. Bb5 {[%clk 0:02:23.3]} 16...
a5 {[%clk 0:02:07.3]} 17. Qe2 {[%clk 0:02:12.9]} 17... Na7 {[%clk 0:01:45.3]}
18. Bxd7 {[%clk 0:01:58.5]} 18... Qxd7 {[%clk 0:01:44.5]} 19. Rfb1 {[%clk
0:01:34.9]} 19... Rfc8 {[%clk 0:01:41.9]} 20. Nxa5 {[%clk 0:01:24.9]} 20... Nc2
{[%clk 0:01:25.3]} 21. Ra2 {[%clk 0:01:19.6]} 21... Nxa3 {[%clk 0:01:18.1]} 22.
Rxa3 {[%clk 0:01:19.6]} 22... Qc7 {[%clk 0:01:04.4]} 23. Nb3 {[%clk 0:01:07.4]}
23... Qc4 {[%clk 0:00:56.4]} 24. Qe3 {[%clk 0:00:58.5]} 24... Nb5 {[%clk
0:00:51.6]} 25. Rxa8 {[%clk 0:00:58.1]} 25... Rxa8 {[%clk 0:00:52.5]} 26. h4
{[%clk 0:00:42]} 26... h6 {[%clk 0:00:49.3]} 27. Nbd2 {[%clk 0:00:39.1]} 27...
Qc6 {[%clk 0:00:32.5]} 28. Qb3 {[%clk 0:00:39.4]} 28... Ra5 {[%clk 0:00:25.6]}
29. Qb4 {[%clk 0:00:39.7]} 29... Bc7 {[%clk 0:00:22.5]} 30. Nb3 {[%clk
0:00:35.6]} 30... Ra2 {[%clk 0:00:18.2]} 31. Rc1 {[%clk 0:00:33.8]} 31... Qd7
{[%clk 0:00:16.8]} 32. Nc5 {[%clk 0:00:31.4]} 32... Qe8 {[%clk 0:00:15.4]} 33.
Qb3 {[%clk 0:00:22.9]} 33... Ra3 {[%clk 0:00:14.8]} 34. Qb4 {[%clk 0:00:21.8]}
34... Qa8 {[%clk 0:00:13.6]} 35. Qxb5 {[%clk 0:00:20.6]} 35... Ra1 {[%clk
0:00:13.3]} 36. Rxa1 {[%clk 0:00:17.2]} 36... Qxa1+ {[%clk 0:00:13.3]} 37. Kh2
{[%clk 0:00:17.5]} 1-0

[Event "Early-Titled-Tuesday-Blitz-February-06-2024"]
[Site "Chess.com"]
[Date "2024.02.06"]
[Round "10"]
[White "GianmarcoVaR"]
[Black "VomDingJetztHer"]
[Result "1/2-1/2"]
[WhiteElo "2683"]
[BlackElo "2510"]
[TimeControl "180+1"]
[EndTime "9:55:17 PST"]
[Termination "Game drawn by repetition"]

1. e4 {[%clk 0:02:54.8]} 1... c6 {[%clk 0:02:59.8]} 2. d4 {[%clk 0:02:53]} 2...
d5 {[%clk 0:03:00.4]} 3. Nc3 {[%clk 0:02:34.9]} 3... dxe4 {[%clk 0:03:00.3]} 4.
Nxe4 {[%clk 0:02:35.3]} 4... Bf5 {[%clk 0:03:00.6]} 5. Ng3 {[%clk 0:02:34.6]}
5... Bg6 {[%clk 0:02:59.9]} 6. N1e2 {[%clk 0:02:33]} 6... Nf6 {[%clk 0:02:55.8]}
7. Nf4 {[%clk 0:02:31.7]} 7... e5 {[%clk 0:02:52.6]} 8. dxe5 {[%clk 0:02:25.6]}
8... Qa5+ {[%clk 0:02:52]} 9. c3 {[%clk 0:02:21.6]} 9... Qxe5+ {[%clk
0:02:51.8]} 10. Qe2 {[%clk 0:02:21.4]} 10... Nbd7 {[%clk 0:02:40.8]} 11. Nxg6
{[%clk 0:02:18.1]} 11... hxg6 {[%clk 0:02:41.7]} 12. Bf4 {[%clk 0:02:17.9]}
12... Qxe2+ {[%clk 0:02:39.7]} 13. Bxe2 {[%clk 0:02:18.8]} 13... Nd5 {[%clk
0:02:35.8]} 14. Bd2 {[%clk 0:02:15.6]} 14... O-O-O {[%clk 0:02:33.9]} 15. O-O-O
{[%clk 0:01:56.5]} 15... Nc5 {[%clk 0:02:27.8]} 16. h4 {[%clk 0:01:39]} 16...
Bd6 {[%clk 0:02:24.5]} 17. h5 {[%clk 0:01:22.4]} 17... Bxg3 {[%clk 0:02:21.4]}
18. fxg3 {[%clk 0:01:22.8]} 18... gxh5 {[%clk 0:02:07.5]} 19. Rxh5 {[%clk
0:01:20.6]} 19... Rxh5 {[%clk 0:02:07.1]} 20. Bxh5 {[%clk 0:01:20.8]} 20... g6
{[%clk 0:02:03.6]} 21. Bf3 {[%clk 0:01:15.3]} 21... Nd3+ {[%clk 0:01:56.5]} 22.
Kc2 {[%clk 0:01:13.8]} 22... Ne5 {[%clk 0:01:56.5]} 23. Be2 {[%clk 0:01:11]}
23... Nf6 {[%clk 0:01:44.5]} 24. Rf1 {[%clk 0:01:06.2]} 24... Ne4 {[%clk
0:01:30.5]} 25. Bf4 {[%clk 0:01:06.3]} 25... f5 {[%clk 0:01:24.9]} 26. Bf3
{[%clk 0:00:39.3]} 26... Nxf3 {[%clk 0:01:22.6]} 27. gxf3 {[%clk 0:00:39.1]}
27... Nf6 {[%clk 0:01:21.5]} 28. Bg5 {[%clk 0:00:36]} 28... Rd6 {[%clk
0:01:11.5]} 29. Rh1 {[%clk 0:00:34.8]} 29... Nd5 {[%clk 0:01:08.7]} 30. Rh8+
{[%clk 0:00:33.6]} 30... Kd7 {[%clk 0:01:02.9]} 31. Rh7+ {[%clk 0:00:31.6]}
31... Kc8 {[%clk 0:01:03.1]} 32. Rg7 {[%clk 0:00:29.5]} 32... Re6 {[%clk
0:00:53.9]} 33. Kd3 {[%clk 0:00:21.2]} 33... Rd6 {[%clk 0:00:40.3]} 34. Ke2
{[%clk 0:00:20.6]} 34... Re6+ {[%clk 0:00:39.8]} 35. Kf2 {[%clk 0:00:20.9]}
35... Nb6 {[%clk 0:00:35.7]} 36. b3 {[%clk 0:00:15.6]} 36... Nd7 {[%clk
0:00:35.9]} 37. Be3 {[%clk 0:00:14.6]} 37... b6 {[%clk 0:00:33.9]} 38. Bf4
{[%clk 0:00:13.2]} 38... a5 {[%clk 0:00:26.9]} 39. Rg8+ {[%clk 0:00:06.6]} 39...
Kb7 {[%clk 0:00:25.3]} 40. Rg7 {[%clk 0:00:07.3]} 40... Kc8 {[%clk 0:00:25]} 41.
Rg8+ {[%clk 0:00:07.9]} 41... Kb7 {[%clk 0:00:25.5]} 42. Rg7 {[%clk 0:00:08.5]}
42... Kc8 {[%clk 0:00:25.3]} 1/2-1/2

[Event "Early-Titled-Tuesday-Blitz-February-06-2024"]
[Site "Chess.com"]
[Date "2024.02.06"]
[Round "10"]
[White "shimastream"]
[Black "Sokoloco"]
[Result "1-0"]
[WhiteElo "3015"]
[BlackElo "2791"]
[TimeControl "180+1"]
[EndTime "9:55:25 PST"]
[Termination "shimastream won by checkmate"]

1. Nc3 {[%clk 0:02:55.3]} 1... c5 {[%clk 0:02:56.4]} 2. e4 {[%clk 0:02:52.5]}
2... d6 {[%clk 0:02:52.3]} 3. f4 {[%clk 0:02:41.9]} 3... Nc6 {[%clk 0:02:40.6]}
4. Bb5 {[%clk 0:02:37.3]} 4... Bd7 {[%clk 0:02:39.2]} 5. Nf3 {[%clk 0:02:33.6]}
5... Nd4 {[%clk 0:02:38.1]} 6. Bc4 {[%clk 0:02:31]} 6... e5 {[%clk 0:02:21.5]}
7. O-O {[%clk 0:02:25.2]} 7... Nf6 {[%clk 0:02:01.4]} 8. Ng5 {[%clk 0:02:03.8]}
8... Ne6 {[%clk 0:01:58.2]} 9. Nxf7 {[%clk 0:01:54.1]} 9... Kxf7 {[%clk
0:01:57.8]} 10. f5 {[%clk 0:01:54.1]} 10... Qc8 {[%clk 0:01:39.6]} 11. d3 {[%clk
0:01:50.5]} 11... Be7 {[%clk 0:01:39.9]} 12. Bg5 {[%clk 0:01:48.2]} 12... Rf8
{[%clk 0:01:40]} 13. Nd5 {[%clk 0:01:19.2]} 13... b5 {[%clk 0:01:28]} 14. fxe6+
{[%clk 0:01:11.4]} 14... Bxe6 {[%clk 0:01:28.9]} 15. Nxf6 {[%clk 0:01:10.5]}
15... Bxf6 {[%clk 0:01:16]} 16. Qh5+ {[%clk 0:01:02.8]} 16... Kg8 {[%clk
0:01:08.5]} 17. Bxf6 {[%clk 0:01:01.4]} 17... gxf6 {[%clk 0:01:01.6]} 18. Qg4+
{[%clk 0:01:00.8]} 18... Kf7 {[%clk 0:01:01.6]} 19. Rxf6+ {[%clk 0:00:53.2]}
19... Kxf6 {[%clk 0:01:01.9]} 20. Rf1+ {[%clk 0:00:53.1]} 20... Ke7 {[%clk
0:01:02.5]} 21. Qg7+ {[%clk 0:00:53.5]} 21... Rf7 {[%clk 0:00:59.1]} 22. Rxf7+
{[%clk 0:00:53.2]} 22... Bxf7 {[%clk 0:00:59.8]} 23. Qxf7+ {[%clk 0:00:53.3]}
23... Kd8 {[%clk 0:01:00.5]} 24. Be6 {[%clk 0:00:51.1]} 24... Qc6 {[%clk
0:01:01]} 25. Bd5 {[%clk 0:00:31.9]} 25... Qb6 {[%clk 0:00:56.6]} 26. Qf8+
{[%clk 0:00:27.7]} 26... Kd7 {[%clk 0:00:56.1]} 27. Qxa8 {[%clk 0:00:24.7]}
27... c4+ {[%clk 0:00:56.2]} 28. Kf1 {[%clk 0:00:25.2]} 28... Qe3 {[%clk
0:00:56.6]} 29. Qc6+ {[%clk 0:00:22.8]} 29... Ke7 {[%clk 0:00:56.5]} 30. Qc7+
{[%clk 0:00:23.1]} 30... Ke8 {[%clk 0:00:51.8]} 31. Bc6+ {[%clk 0:00:21.3]}
31... Kf8 {[%clk 0:00:52.1]} 32. Qxd6+ {[%clk 0:00:20.7]} 32... Kf7 {[%clk
0:00:52.9]} 33. Bd5+ {[%clk 0:00:20.8]} 33... Ke8 {[%clk 0:00:53.6]} 34. Qxe5+
{[%clk 0:00:21]} 34... Kd8 {[%clk 0:00:53.6]} 35. Qd6+ {[%clk 0:00:20.8]} 35...
Ke8 {[%clk 0:00:53.8]} 36. Qe6+ {[%clk 0:00:18.6]} 36... Kd8 {[%clk 0:00:53.5]}
37. Qf6+ {[%clk 0:00:11.6]} 37... Kc7 {[%clk 0:00:52.2]} 38. Qf2 {[%clk
0:00:11.5]} 38... Qc1+ {[%clk 0:00:51.8]} 39. Qe1 {[%clk 0:00:11.9]} 39... Qxc2
{[%clk 0:00:51.1]} 40. dxc4 {[%clk 0:00:12.1]} 40... Qxb2 {[%clk 0:00:49]} 41.
cxb5 {[%clk 0:00:11.6]} 41... Qxb5+ {[%clk 0:00:48.8]} 42. Qe2 {[%clk
0:00:12.3]} 42... Qb1+ {[%clk 0:00:47.1]} 43. Kf2 {[%clk 0:00:13]} 43... h5
{[%clk 0:00:46.7]} 44. Qxh5 {[%clk 0:00:12.2]} 44... a5 {[%clk 0:00:46.3]} 45.
Qe2 {[%clk 0:00:12.3]} 45... a4 {[%clk 0:00:46]} 46. h4 {[%clk 0:00:11.8]} 46...
a3 {[%clk 0:00:46.3]} 47. h5 {[%clk 0:00:12]} 47... Qh1 {[%clk 0:00:46.6]} 48.
Qg4 {[%clk 0:00:11.5]} 48... Qc1 {[%clk 0:00:43.9]} 49. Qg3+ {[%clk 0:00:10]}
49... Kd8 {[%clk 0:00:42.2]} 50. Qd6+ {[%clk 0:00:09.6]} 50... Kc8 {[%clk
0:00:39.8]} 51. Qc6+ {[%clk 0:00:10.5]} 51... Kb8 {[%clk 0:00:40.3]} 52. Qb7#
{[%clk 0:00:10]} 1-0

[Event "Early-Titled-Tuesday-Blitz-February-06-2024"]
[Site "Chess.com"]
[Date "2024.02.06"]
[Round "10"]
[White "kibromNNN"]
[Black "tolia123"]
[Result "0-1"]
[WhiteElo "1784"]
[BlackElo "2164"]
[TimeControl "180+1"]
[EndTime "9:55:30 PST"]
[Termination "tolia123 won on time"]

1. d4 {[%clk 0:02:59.4]} 1... Nf6 {[%clk 0:02:59.2]} 2. c4 {[%clk 0:02:58.5]}
2... g6 {[%clk 0:02:59.6]} 3. Nc3 {[%clk 0:02:58.4]} 3... Bg7 {[%clk 0:03:00.3]}
4. e4 {[%clk 0:02:57.7]} 4... d6 {[%clk 0:03:00.4]} 5. Be2 {[%clk 0:02:56.9]}
5... O-O {[%clk 0:03:00]} 6. Nf3 {[%clk 0:02:56.7]} 6... e5 {[%clk 0:03:00]} 7.
d5 {[%clk 0:02:55.9]} 7... a5 {[%clk 0:02:58.3]} 8. Bg5 {[%clk 0:02:54.2]} 8...
h6 {[%clk 0:02:54]} 9. Be3 {[%clk 0:02:51.7]} 9... Ng4 {[%clk 0:02:53]} 10. Bd2
{[%clk 0:02:50.6]} 10... f5 {[%clk 0:02:53.1]} 11. exf5 {[%clk 0:02:47.4]} 11...
gxf5 {[%clk 0:02:51.9]} 12. h3 {[%clk 0:02:44.7]} 12... Nf6 {[%clk 0:02:49.2]}
13. Qc1 {[%clk 0:02:43.4]} 13... Kh7 {[%clk 0:02:46.9]} 14. g4 {[%clk 0:02:39]}
14... Ne4 {[%clk 0:02:30.2]} 15. Nxe4 {[%clk 0:02:21.4]} 15... fxe4 {[%clk
0:02:31.1]} 16. Nh2 {[%clk 0:02:18.3]} 16... Qh4 {[%clk 0:02:26.5]} 17. Be3
{[%clk 0:02:14.6]} 17... Na6 {[%clk 0:02:19.5]} 18. Qd2 {[%clk 0:02:06.9]} 18...
Nc5 {[%clk 0:02:09.1]} 19. O-O-O {[%clk 0:02:04.8]} 19... a4 {[%clk 0:02:07]}
20. Nf1 {[%clk 0:01:46.6]} 20... Bd7 {[%clk 0:01:45.4]} 21. Ng3 {[%clk
0:01:40.3]} 21... a3 {[%clk 0:01:20.6]} 22. b4 {[%clk 0:01:37.7]} 22... Na4
{[%clk 0:01:04.8]} 23. Nxe4 {[%clk 0:01:32]} 23... Nb2 {[%clk 0:01:01]} 24. Rdg1
{[%clk 0:01:17.7]} 24... b5 {[%clk 0:00:47.3]} 25. cxb5 {[%clk 0:01:08.2]} 25...
Rfb8 {[%clk 0:00:44.3]} 26. g5 {[%clk 0:01:02.5]} 26... Qxe4 {[%clk 0:00:41.9]}
27. gxh6 {[%clk 0:00:54.2]} 27... Bf6 {[%clk 0:00:36.6]} 28. Bg5 {[%clk
0:00:44.4]} 28... Bh8 {[%clk 0:00:25.2]} 29. Be3 {[%clk 0:00:17.6]} 29... Bxb5
{[%clk 0:00:25.2]} 30. Bxb5 {[%clk 0:00:14]} 30... Rxb5 {[%clk 0:00:26.1]} 31.
Rg4 {[%clk 0:00:12.3]} 31... Qxh1+ {[%clk 0:00:25]} 32. Kc2 {[%clk 0:00:10.5]}
32... Qxd5 {[%clk 0:00:24.4]} 33. Qe2 {[%clk 0:00:04]} 33... Rab8 {[%clk
0:00:17.2]} 0-1

[Event "Early-Titled-Tuesday-Blitz-February-06-2024"]
[Site "Chess.com"]
[Date "2024.02.06"]
[Round "10"]
[White "yuriydovzik"]
[Black "abelmat"]
[Result "1-0"]
[WhiteElo "2210"]
[BlackElo "2079"]
[TimeControl "180+1"]
[EndTime "9:55:32 PST"]
[Termination "yuriydovzik won by checkmate"]

1. Nf3 {[%clk 0:02:52.5]} 1... Nf6 {[%clk 0:01:28.6]} 2. d4 {[%clk 0:02:45.9]}
2... d5 {[%clk 0:01:28.1]} 3. c4 {[%clk 0:02:40.9]} 3... e6 {[%clk 0:01:28.3]}
4. Nc3 {[%clk 0:02:40.2]} 4... Be7 {[%clk 0:01:28.7]} 5. g3 {[%clk 0:02:37.2]}
5... O-O {[%clk 0:01:27.9]} 6. Bg2 {[%clk 0:02:37.2]} 6... dxc4 {[%clk
0:01:27.1]} 7. O-O {[%clk 0:02:34.6]} 7... Bd7 {[%clk 0:01:25]} 8. Ne5 {[%clk
0:02:31.7]} 8... Bc6 {[%clk 0:01:25]} 9. e4 {[%clk 0:02:20.4]} 9... b5 {[%clk
0:01:19.4]} 10. d5 {[%clk 0:02:16.4]} 10... exd5 {[%clk 0:00:59.1]} 11. Nxc6
{[%clk 0:02:02.5]} 11... Nxc6 {[%clk 0:00:58.8]} 12. exd5 {[%clk 0:02:02.2]}
12... Nb4 {[%clk 0:00:55.8]} 13. d6 {[%clk 0:01:54.8]} 13... Bxd6 {[%clk
0:00:51.5]} 14. Bxa8 {[%clk 0:01:51.7]} 14... Qxa8 {[%clk 0:00:51.7]} 15. Nxb5
{[%clk 0:01:51.1]} 15... Nd3 {[%clk 0:00:50.4]} 16. Nxd6 {[%clk 0:01:47.5]}
16... cxd6 {[%clk 0:00:50.7]} 17. Be3 {[%clk 0:01:22.9]} 17... h5 {[%clk
0:00:38.7]} 18. b3 {[%clk 0:01:17.5]} 18... Ne5 {[%clk 0:00:38.3]} 19. f3 {[%clk
0:01:13.5]} 19... h4 {[%clk 0:00:34.4]} 20. Bf4 {[%clk 0:01:06.5]} 20... cxb3
{[%clk 0:00:29.5]} 21. Bxe5 {[%clk 0:01:04.8]} 21... dxe5 {[%clk 0:00:28.1]} 22.
axb3 {[%clk 0:01:04.6]} 22... hxg3 {[%clk 0:00:21.3]} 23. hxg3 {[%clk
0:01:03.9]} 23... Qb8 {[%clk 0:00:20.5]} 24. Kg2 {[%clk 0:00:56.8]} 24... Rd8
{[%clk 0:00:20.2]} 25. Qc2 {[%clk 0:00:51]} 25... Nh5 {[%clk 0:00:17.8]} 26.
Rae1 {[%clk 0:00:36.9]} 26... Qb4 {[%clk 0:00:14.9]} 27. Re2 {[%clk 0:00:30.3]}
27... Rd6 {[%clk 0:00:12.1]} 28. Qe4 {[%clk 0:00:28.7]} 28... Rg6 {[%clk
0:00:11.2]} 29. Qxb4 {[%clk 0:00:26.3]} 29... Nxg3 {[%clk 0:00:11]} 30. Kf2
{[%clk 0:00:22.8]} 30... e4 {[%clk 0:00:04.9]} 31. Rxe4 {[%clk 0:00:20.4]} 31...
Nxe4+ {[%clk 0:00:03.8]} 32. Qxe4 {[%clk 0:00:19.6]} 32... Rb6 {[%clk
0:00:04.7]} 33. Qc4 {[%clk 0:00:18]} 33... g6 {[%clk 0:00:05.6]} 34. Rd1 {[%clk
0:00:17.5]} 34... Rf6 {[%clk 0:00:05]} 35. Rd8+ {[%clk 0:00:16.6]} 35... Kg7
{[%clk 0:00:05.9]} 36. Qc3 {[%clk 0:00:16.4]} 36... a5 {[%clk 0:00:05.8]} 37.
Rd6 {[%clk 0:00:16.3]} 37... a4 {[%clk 0:00:06.1]} 38. Qxf6+ {[%clk 0:00:16.1]}
38... Kh6 {[%clk 0:00:07]} 39. Qxf7 {[%clk 0:00:15.4]} 39... axb3 {[%clk
0:00:07.9]} 40. Qxg6# {[%clk 0:00:15.5]} 1-0

[Event "Early-Titled-Tuesday-Blitz-February-06-2024"]
[Site "Chess.com"]
[Date "2024.02.06"]
[Round "10"]
[White "Rurep26"]
[Black "Casper"]
[Result "0-1"]
[WhiteElo "2729"]
[BlackElo "2537"]
[TimeControl "180+1"]
[EndTime "9:55:33 PST"]
[Termination "Casper won by resignation"]

1. d4 {[%clk 0:03:00.9]} 1... Nf6 {[%clk 0:02:55.7]} 2. Bf4 {[%clk 0:03:00.2]}
2... Nc6 {[%clk 0:02:55.7]} 3. Nf3 {[%clk 0:02:54.6]} 3... Nh5 {[%clk
0:02:55.8]} 4. Bc1 {[%clk 0:02:47.5]} 4... Nf6 {[%clk 0:02:55.4]} 5. Bf4 {[%clk
0:02:45.2]} 5... Nh5 {[%clk 0:02:55.4]} 6. Bc1 {[%clk 0:02:42.6]} 6... d5 {[%clk
0:02:55.8]} 7. g3 {[%clk 0:02:39.3]} 7... g6 {[%clk 0:02:39.2]} 8. Bg2 {[%clk
0:02:29.8]} 8... Bg7 {[%clk 0:02:39.6]} 9. O-O {[%clk 0:02:29.9]} 9... O-O
{[%clk 0:02:38.9]} 10. h3 {[%clk 0:02:24.9]} 10... Re8 {[%clk 0:02:36.5]} 11. c4
{[%clk 0:02:17.6]} 11... dxc4 {[%clk 0:02:33.9]} 12. e3 {[%clk 0:02:15.6]} 12...
e5 {[%clk 0:02:33.6]} 13. dxe5 {[%clk 0:02:10.9]} 13... Nxe5 {[%clk 0:02:34.5]}
14. Nxe5 {[%clk 0:02:07.8]} 14... Bxe5 {[%clk 0:02:35.4]} 15. Bd2 {[%clk
0:01:58.7]} 15... Bxb2 {[%clk 0:02:28.5]} 16. Bc3 {[%clk 0:01:53.1]} 16... Bxa1
{[%clk 0:02:25.5]} 17. Bxa1 {[%clk 0:01:50.8]} 17... Qxd1 {[%clk 0:02:25]} 18.
Rxd1 {[%clk 0:01:51.7]} 18... c6 {[%clk 0:02:25.7]} 19. Nd2 {[%clk 0:01:49.9]}
19... Be6 {[%clk 0:02:25.6]} 20. g4 {[%clk 0:01:48.5]} 20... Ng7 {[%clk
0:02:23.5]} 21. Ne4 {[%clk 0:01:49.1]} 21... Red8 {[%clk 0:02:03.1]} 22. Nf6+
{[%clk 0:01:44.6]} 22... Kh8 {[%clk 0:01:54.5]} 23. Rc1 {[%clk 0:01:43.9]} 23...
Rd2 {[%clk 0:01:50]} 24. h4 {[%clk 0:01:42]} 24... Rad8 {[%clk 0:01:40.9]} 25.
Bf3 {[%clk 0:01:40.6]} 25... Rxa2 {[%clk 0:01:05.9]} 26. Be5 {[%clk 0:01:38.3]}
26... h6 {[%clk 0:00:34.5]} 27. g5 {[%clk 0:01:33.1]} 27... h5 {[%clk
0:00:33.7]} 28. Rb1 {[%clk 0:01:24.4]} 28... b5 {[%clk 0:00:19.3]} 29. Bxc6
{[%clk 0:01:23.3]} 29... c3 {[%clk 0:00:14.6]} 30. Bxc3 {[%clk 0:01:21.5]} 30...
Rc8 {[%clk 0:00:14.6]} 31. Rxb5 {[%clk 0:01:18.5]} 31... Rxc6 {[%clk 0:00:14.9]}
32. Bd4 {[%clk 0:01:15]} 32... Rc8 {[%clk 0:00:13.1]} 33. Rb7 {[%clk 0:01:13.3]}
33... a5 {[%clk 0:00:12.8]} 34. Re7 {[%clk 0:01:13]} 34... a4 {[%clk 0:00:12.6]}
35. Ne8 {[%clk 0:01:12.4]} 35... a3 {[%clk 0:00:10.4]} 36. Nxg7 {[%clk
0:01:10.7]} 36... Kg8 {[%clk 0:00:10.7]} 37. Nxe6 {[%clk 0:00:54.6]} 37... fxe6
{[%clk 0:00:11.6]} 38. Rg7+ {[%clk 0:00:55.1]} 38... Kf8 {[%clk 0:00:08.6]} 39.
Rh7 {[%clk 0:00:55.5]} 39... Ke8 {[%clk 0:00:07.7]} 40. Bf6 {[%clk 0:00:54.2]}
40... Rd2 {[%clk 0:00:05.9]} 41. Re7+ {[%clk 0:00:53.2]} 41... Kf8 {[%clk
0:00:06.2]} 42. Rh7 {[%clk 0:00:54.1]} 42... Ke8 {[%clk 0:00:06.6]} 43. Re7+
{[%clk 0:00:54]} 43... Kf8 {[%clk 0:00:05.7]} 44. Rh7 {[%clk 0:00:54.9]} 44...
Rc1+ {[%clk 0:00:04.8]} 45. Kg2 {[%clk 0:00:54.7]} 45... a2 {[%clk 0:00:05.7]}
46. Ra7 {[%clk 0:00:51.9]} 46... Ke8 {[%clk 0:00:03.2]} 47. Kf3 {[%clk
0:00:48.5]} 47... Rdc2 {[%clk 0:00:01.8]} 48. Ke4 {[%clk 0:00:48.5]} 48... Rxf2
{[%clk 0:00:01.8]} 49. Ke5 {[%clk 0:00:47.3]} 49... Rxf6 {[%clk 0:00:02.2]} 50.
gxf6 {[%clk 0:00:46.6]} 50... a1=Q+ {[%clk 0:00:03.1]} 51. Rxa1 {[%clk
0:00:45.2]} 51... Rxa1 {[%clk 0:00:04]} 52. Kxe6 {[%clk 0:00:46]} 52... Ra6+
{[%clk 0:00:04.7]} 53. Ke5 {[%clk 0:00:46]} 53... Kf7 {[%clk 0:00:05.6]} 54. Kf4
{[%clk 0:00:46.9]} 54... Rxf6+ {[%clk 0:00:06.5]} 55. Kg5 {[%clk 0:00:47.8]}
55... Rf5+ {[%clk 0:00:07.1]} 0-1